lending/lending_fUSD_20260306
["ID","MTS","AMOUNT","RATE_DAILY","PERIOD"]
[407769856,1772784139152,-3055.21828805,0.0004713,30]
[407769857,1772784139180,-151.0,0.0004713,30]
[407769858,1772784139209,-156.587,0.0004713,30]
[407769859,1772784139237,-162.380719,0.0004713,30]
[407769860,1772784139266,-168.3888056,0.0004713,30]
[407769861,1772784139293,-174.61919141,0.0004713,30]
[407769862,1772784139326,-181.08010149,0.0004713,30]
[407769863,1772784139356,-187.78006525,0.0004713,30]
[407769864,1772784139386,-1030.0,0.0004713,30]
[407769865,1772784139415,-194.72792766,0.0004713,30]
[407769866,1772784139445,-1068.11,0.0004713,30]
[407769867,1772784139473,-1107.63007,0.0004713,30]
[407769868,1772784139502,-194.72792766,0.0004713,30]
[407769869,1772784139535,-1148.61238259,0.0004713,30]
[407769870,1772784139565,-1191.11104075,0.0004713,30]
[407769871,1772784139594,-1235.18214925,0.0004713,30]
[407769872,1772784139624,-1280.88388878,0.0004713,30]
[407769873,1772784139652,-170.0,0.0004713,30]
[407769874,1772784139681,-1328.27659266,0.0004713,30]
[407769875,1772784139711,-500.0,0.0004713,30]
[407769876,1772784139741,-176.29,0.0004713,30]
[407769877,1772784139774,-1377.42282659,0.0004713,30]
[407769878,1772784139804,-500.0,0.0004713,30]
[407769879,1772784139832,-182.81273,0.0004713,30]
[407769880,1772784139863,-500.0,0.0004713,30]
[407769881,1772784140233,-189.57680101,0.0004713,30]
[407769882,1772784140265,-500.0,0.0004713,30]
[407769883,1772784140309,-196.59114265,0.0004713,30]
[407769884,1772784140347,-500.0,0.0004713,30]
[407769885,1772784140381,-203.86501493,0.0004713,30]
[407769886,1772784140413,-500.0,0.0004713,30]
[407769887,1772784140443,-211.40802048,0.0004713,30]
[407769888,1772784140473,-500.0,0.0004713,30]
[407769889,1772784140503,-219.23011724,0.0004713,30]
[407769890,1772784140533,-500.0,0.0004713,30]
[407769891,1772784140562,-227.34163157,0.0004713,30]
[407769892,1772784140593,-500.0,0.0004713,30]
[407769893,1772784140621,-235.75327194,0.0004713,30]
[407769894,1772784140651,-500.0,0.0004713,30]
[407769895,1772784140680,-244.476143,0.0004713,30]
[407769896,1772784140715,-500.0,0.0004713,30]
[407769897,1772784140751,-253.52176029,0.0004713,30]
[407769898,1772784140781,-262.90206542,0.0004713,30]
[407769899,1772784140811,-272.62944185,0.0004713,30]
[407769900,1772784140844,-282.71673119,0.0004713,30]
[407769901,1772784140878,-3579.0,0.0004713,30]
[407769902,1772784140911,-293.17725025,0.0004713,30]
[407769903,1772784140946,-3579.0,0.0004713,30]
[407769904,1772784140978,-304.02480851,0.0004713,30]
[407769905,1772784141009,-3579.0,0.0004713,30]
[407769906,1772784141040,-315.27372642,0.0004713,30]
[407769907,1772784141070,-326.9388543,0.0004713,30]
[407769908,1772784141101,-3579.0,0.0004713,30]
[407769909,1772784141130,-150.0,0.0004713,120]
[407769910,1772784141159,-3579.0,0.0004713,30]
[407769911,1772784141195,-3579.0,0.0004713,30]
[407769912,1772784141225,-151.0,0.0004713,30]
[407769913,1772784141257,-151.0,0.0004713,30]
[407769914,1772784141289,-151.0,0.0004713,30]
[407769915,1772784141321,-151.0,0.0004713,30]
[407769916,1772784141388,-500.0,0.0004713,30]
[407769917,1772784141453,-518.5,0.0004713,30]
[407769918,1772784141516,-537.6845,0.0004713,30]
[407769919,1772784141577,-557.5788265,0.0004713,30]
[407769920,1772784141639,-578.20924308,0.0004713,30]
[407769921,1772784141705,-2000.0,0.0004713,30]
[407769922,1772784141767,-599.60298507,0.0004713,30]
[407769923,1772784141830,-621.78829552,0.0004713,30]
[407769924,1772784141895,-644.79446246,0.0004713,30]
[407769925,1772784141958,-668.65185757,0.0004713,30]
[407769926,1772784142017,-668.65185757,0.0004713,30]
[407769927,1772784142076,-151.0,0.0004713,30]
[407769928,1772784142137,-151.0,0.0004713,30]
[407769929,1772784142202,-500.0,0.0004713,30]
[407769930,1772784142268,-518.5,0.0004713,30]
[407769931,1772784142337,-537.6845,0.0004713,30]
[407769932,1772784142407,-557.5788265,0.0004713,30]
[407769933,1772784142473,-578.20924308,0.0004713,30]
[407769934,1772784142543,-599.60298507,0.0004713,30]
[407769935,1772784142609,-621.78829552,0.0004713,30]
[407769936,1772784142674,-644.79446246,0.0004713,30]
[407769937,1772784142739,-668.65185757,0.0004713,30]
[407769938,1772784142803,-693.3919763,0.0004713,30]
[407769939,1772784142869,-719.04747942,0.0004713,30]
[407769940,1772784142931,-745.65223616,0.0004713,30]
[407769941,1772784142995,-773.2413689,0.0004713,30]
[407769942,1772784143063,-801.85129955,0.0004713,30]
[407769943,1772784143126,-831.51979763,0.0004713,30]
[407769944,1772784143188,-862.28603014,0.0004713,30]
[407769945,1772784143253,-894.19061326,0.0004713,30]
[407769946,1772784143319,-927.27566595,0.0004713,30]
[407769947,1772784143393,-961.58486559,0.0004713,30]
[407769948,1772784143460,-961.58486559,0.0004713,30]
[407769949,1772784143521,-251.0,0.0004713,30]
[407769950,1772784143581,-260.287,0.0004713,30]
[407769951,1772784143652,-260.287,0.0004713,30]
[407769952,1772784143719,-500.0,0.0004713,30]
[407769953,1772784143784,-500.0,0.0004713,30]
[407769954,1772784143848,-500.0,0.0004713,30]
[407769955,1772784143925,-500.0,0.0004713,30]
[407769956,1772784143991,-227.0,0.0004713,120]
[407769957,1772784144055,-227.0,0.0004713,120]
[407769958,1772784144117,-227.0,0.0004713,120]
[407769959,1772784144190,-227.0,0.0004713,120]
[407769960,1772784144257,-227.0,0.0004713,120]
[407769961,1772784144324,-227.0,0.0004713,120]
[407769962,1772784144389,-227.0,0.0004713,120]
[407769963,1772784144452,-227.0,0.0004713,120]
[407769964,1772784144518,-227.0,0.0004713,120]
[407769965,1772784144581,-227.0,0.0004713,120]
[407769966,1772784144639,-227.0,0.0004713,120]
[407769967,1772784144698,-227.0,0.0004713,120]
[407769968,1772784145095,-227.0,0.0004713,120]
[407769969,1772784145158,-227.0,0.0004713,120]
[407769970,1772784145221,-227.0,0.0004713,120]
[407769971,1772784145286,-227.0,0.0004713,120]
[407769972,1772784145351,-259.787797,0.0004713,120]
[407769973,1772784145415,-3009.14060351,0.0004713,60]
[407769974,1772784145479,-220.0,0.0004713,30]
[407769975,1772784145543,-200.0,0.0004713,30]
[407769976,1772784145606,-220.0,0.0004713,30]
[407769977,1772784145668,-200.0,0.0004713,30]
[407769978,1772784145731,-200.0,0.0004713,30]
[407769979,1772784145792,-220.0,0.0004713,30]
[407769980,1772784145852,-200.0,0.0004713,30]
[407769981,1772784145913,-220.0,0.0004713,30]
[407769982,1772784145984,-220.0,0.0004713,30]
[407769983,1772784146046,-200.0,0.0004713,30]
[407769984,1772784146110,-220.0,0.0004713,30]
[407769985,1772784146176,-200.0,0.0004713,30]
[407769986,1772784146241,-220.0,0.0004713,30]
[407769987,1772784146305,-200.0,0.0004713,30]
[407769988,1772784146374,-220.0,0.0004713,30]
[407769989,1772784146438,-200.0,0.0004713,30]
[407769990,1772784146503,-220.0,0.0004713,30]
[407769991,1772784146572,-200.0,0.0004713,30]
[407769992,1772784146644,-220.0,0.0004713,30]
[407769993,1772784146711,-200.0,0.0004713,30]
[407769994,1772784146773,-200.0,0.0004713,30]
[407769995,1772784146835,-200.0,0.0004713,30]
[407769996,1772784146899,-200.0,0.0004713,30]
[407769997,1772784146969,-520.0,0.0004713,30]
[407769998,1772784147032,-200.0,0.0004713,30]
[407769999,1772784147099,-539.24,0.0004713,30]
[407770000,1772784147164,-559.19188,0.0004713,30]
[407770001,1772784147226,-579.88197956,0.0004713,30]
[407770002,1772784147290,-601.3376128,0.0004713,30]
[407770003,1772784147355,-623.58710448,0.0004713,30]
[407770004,1772784147427,-646.65982734,0.0004713,30]
[407770005,1772784147493,-670.58624095,0.0004713,30]
[407770006,1772784147561,-695.39793187,0.0004713,30]
[407770007,1772784147630,-721.12765535,0.0004713,30]
[407770008,1772784147700,-747.8093786,0.0004713,30]
[407770009,1772784147765,-775.47832561,0.0004713,30]
[407770010,1772784147831,-151.0,0.0004713,30]
[407770011,1772784147898,-6519.1655273,0.0004713,30]
[407770012,1772784147963,-156.587,0.0004713,30]
[407770013,1772784148027,-500.0,0.0004713,30]
[407770014,1772784148088,-162.380719,0.0004713,30]
[407770015,1772784148155,-500.0,0.0004713,30]
[407770016,1772784148224,-168.3888056,0.0004713,30]
[407770017,1772784148292,-500.0,0.0004713,30]
[407770018,1772784148356,-174.61919141,0.0004713,30]
[407770019,1772784148427,-500.0,0.0004713,30]
[407770020,1772784148490,-181.08010149,0.0004713,30]
[407770021,1772784148555,-500.0,0.0004713,30]
[407770022,1772784148619,-187.78006525,0.0004713,30]
[407770023,1772784148683,-500.0,0.0004713,30]
[407770024,1772784148744,-194.72792766,0.0004713,30]
[407770025,1772784148805,-500.0,0.0004713,30]
[407770026,1772784148867,-194.72792766,0.0004713,30]
[407770027,1772784148933,-500.0,0.0004713,30]
[407770028,1772784148998,-500.0,0.0004713,30]
[407770029,1772784149064,-500.0,0.0004713,30]
[407770030,1772784149127,-500.0,0.0004713,30]
[407770031,1772784149190,-500.0,0.0004713,30]
[407770032,1772784149252,-151.0,0.0004713,30]
[407770033,1772784149321,-500.0,0.0004713,30]
[407770034,1772784149385,-500.0,0.0004713,30]
[407770035,1772784149463,-500.0,0.0004713,30]
[407770036,1772784149532,-500.0,0.0004713,30]
[407770037,1772784149596,-1000.0,0.0004713,30]
[407770038,1772784149662,-500.0,0.0004713,30]
[407770039,1772784149726,-1000.0,0.0004713,30]
[407770040,1772784149791,-500.0,0.0004713,30]
[407770041,1772784149858,-1000.0,0.0004713,30]
[407770042,1772784149923,-1000.0,0.0004713,30]
[407770043,1772784149992,-1000.0,0.0004713,30]
[407770044,1772784150057,-1000.0,0.0004713,30]
[407770045,1772784150125,-1000.0,0.0004713,30]
[407770046,1772784150195,-851.42,0.0004713,120]
[407770047,1772784150262,-1000.0,0.0004713,30]
[407770048,1772784150331,-851.42,0.0004713,120]
[407770049,1772784150410,-851.42,0.0004713,120]
[407770050,1772784150480,-1000.0,0.0004713,30]
[407770051,1772784150547,-851.42,0.0004713,120]
[407770052,1772784150611,-851.42,0.0004713,120]
[407770053,1772784150675,-1000.0,0.0004713,30]
[407770054,1772784151064,-851.42,0.0004713,120]
[407770055,1772784151124,-851.42,0.0004713,120]
[407770056,1772784151184,-1000.0,0.0004713,30]
[407770057,1772784151246,-851.42,0.0004713,120]
[407770058,1772784151307,-851.42,0.0004713,120]
[407770059,1772784151373,-851.42,0.0004713,120]
[407770060,1772784151435,-500.0,0.0004713,30]
[407770061,1772784151499,-1000.0,0.0004713,30]
[407770062,1772784151574,-851.42,0.0004713,120]
[407770063,1772784151647,-851.42,0.0004713,120]
[407770064,1772784151708,-1000.0,0.0004713,30]
[407770065,1772784151775,-851.42,0.0004713,120]
[407770066,1772784151841,-851.42,0.0004713,120]
[407770067,1772784151907,-851.42,0.0004713,120]
[407770068,1772784151973,-500.0,0.0004713,30]
[407770069,1772784152039,-851.42,0.0004713,120]
[407770070,1772784152106,-851.42,0.0004713,120]
[407770071,1772784152170,-851.42,0.0004713,120]
[407770072,1772784152237,-851.42,0.0004713,120]
[407770073,1772784152300,-1000.0,0.0004713,30]
[407770074,1772784152367,-851.42,0.0004713,120]
[407770075,1772784152432,-851.42,0.0004713,120]
[407770076,1772784152510,-851.42,0.0004713,120]
[407770077,1772784152577,-851.42,0.0004713,120]
[407770078,1772784152642,-851.63,0.0004713,120]
[407770079,1772784152705,-1000.0,0.0004713,30]
[407770080,1772784152766,-1000.0,0.0004713,30]
[407770081,1772784152830,-1000.0,0.0004713,30]
[407770082,1772784152889,-1000.0,0.0004713,30]
[407770083,1772784152950,-160.0,0.0004713,30]
[407770084,1772784153013,-1000.0,0.0004713,30]
[407770085,1772784153074,-160.0,0.0004713,30]
[407770086,1772784153136,-1000.0,0.0004713,30]
[407770087,1772784153202,-160.0,0.0004713,30]
[407770088,1772784153264,-160.0,0.0004713,30]
[407770089,1772784153326,-499.0,0.0004713,30]
[407770090,1772784153390,-150.0,0.0004713,30]
[407770091,1772784153459,-162.47,0.0004713,30]
[407770092,1772784153527,-632.72,0.0004713,30]
[407770093,1772784153593,-202.35,0.0004713,30]
[407770094,1772784153659,-562.7,0.0004713,30]
[407770095,1772784153725,-150.0,0.0004713,30]
[407770096,1772784153789,-160.0,0.0004713,30]
[407770097,1772784153852,-160.0,0.0004713,30]
[407770098,1772784153914,-160.0,0.0004713,30]
[407770099,1772784153979,-160.0,0.0004713,30]
[407770100,1772784154040,-151.0,0.0004713,30]
[407770101,1772784154103,-160.0,0.0004713,30]
[407770102,1772784154166,-151.0,0.0004713,30]
[407770103,1772784154228,-160.0,0.0004713,30]
[407770104,1772784154293,-151.0,0.0004713,30]
[407770105,1772784154357,-151.0,0.0004713,30]
[407770106,1772784154420,-151.0,0.0004713,30]
[407770107,1772784154485,-151.0,0.0004713,30]
[407770108,1772784154548,-250.0,0.0004713,30]
[407770109,1772784154612,-151.0,0.0004713,30]
[407770110,1772784154676,-250.0,0.0004713,30]
[407770111,1772784154739,-151.0,0.0004713,30]
[407770112,1772784154802,-250.0,0.0004713,30]
[407770113,1772784154866,-151.0,0.0004713,30]
[407770114,1772784154932,-250.0,0.0004713,30]
[407770115,1772784155001,-151.0,0.0004713,30]
[407770116,1772784155067,-250.0,0.0004713,30]
[407770117,1772784155134,-151.0,0.0004713,30]
[407770118,1772784155200,-250.0,0.0004713,30]
[407770119,1772784155273,-151.0,0.0004713,30]
[407770120,1772784155343,-250.0,0.0004713,30]
[407770121,1772784155415,-151.0,0.0004713,30]
[407770122,1772784155481,-250.0,0.0004713,30]
[407770123,1772784155548,-151.0,0.0004713,30]
[407770124,1772784155616,-250.0,0.0004713,30]
[407770125,1772784155680,-151.0,0.0004713,30]
[407770126,1772784155743,-250.0,0.0004713,30]
[407770127,1772784155807,-151.0,0.0004713,30]
[407770128,1772784155874,-250.0,0.0004713,30]
[407770129,1772784155946,-151.0,0.0004713,30]
[407770130,1772784156014,-250.0,0.0004713,30]
[407770131,1772784156076,-150.0,0.0004713,30]
[407770132,1772784156141,-250.0,0.0004713,30]
[407770133,1772784156206,-563.02,0.0004713,30]
[407770134,1772784156271,-250.0,0.0004713,30]
[407770135,1772784156334,-150.0,0.0004713,30]
[407770136,1772784156399,-565.15,0.0004713,30]
[407770137,1772784156463,-202.47,0.0004713,30]
[407770138,1772784156526,-181.92,0.0004713,30]
[407770139,1772784156592,-474.0,0.0004713,30]
[407770140,1772784156658,-632.63,0.0004713,30]
[407770141,1772784156997,-250.0,0.0004713,30]
[407770142,1772784157061,-250.0,0.0004713,30]
[407770143,1772784157123,-300.0,0.0004713,30]
[407770144,1772784157185,-250.0,0.0004713,30]
[407770145,1772784157249,-300.0,0.0004713,30]
[407770146,1772784157314,-250.0,0.0004713,30]
[407770147,1772784157380,-250.0,0.0004713,30]
[407770148,1772784157442,-300.0,0.0004713,30]
[407770149,1772784157506,-250.0,0.0004713,30]
[407770150,1772784157570,-300.0,0.0004713,30]
[407770151,1772784157643,-250.0,0.0004713,30]
[407770152,1772784157709,-300.0,0.0004713,30]
[407770153,1772784157780,-250.0,0.0004713,30]
[407770154,1772784157848,-300.0,0.0004713,30]
[407770155,1772784157912,-250.0,0.0004713,30]
[407770156,1772784157974,-300.0,0.0004713,30]
[407770157,1772784158035,-10106.32360185,0.0004713,30]
[407770158,1772784158096,-250.0,0.0004713,30]
[407770159,1772784158155,-300.0,0.0004713,30]
[407770160,1772784158216,-300.0,0.0004713,30]
[407770161,1772784158283,-250.0,0.0004713,30]
[407770162,1772784158345,-300.0,0.0004713,30]
[407770163,1772784158408,-300.0,0.0004713,30]
[407770164,1772784158471,-250.0,0.0004713,30]
[407770165,1772784158534,-250.0,0.0004713,30]
[407770166,1772784158597,-250.0,0.0004713,30]
[407770167,1772784158659,-250.0,0.0004713,30]
[407770168,1772784158727,-250.0,0.0004713,30]
[407770169,1772784158788,-250.0,0.0004713,30]
[407770170,1772784158849,-250.0,0.0004713,30]
[407770171,1772784158910,-250.0,0.0004713,30]
[407770172,1772784158975,-250.0,0.0004713,30]
[407770173,1772784159036,-565.15,0.0004713,30]
[407770174,1772784159095,-190.98,0.0004713,30]
[407770175,1772784159153,-562.93,0.0004713,30]
[407770176,1772784159211,-250.0,0.0004713,30]
[407770177,1772784159271,-1000.0,0.0004713,30]
[407770178,1772784159332,-250.0,0.0004713,30]
[407770179,1772784159394,-632.63,0.0004713,30]
[407770180,1772784159458,-1000.0,0.0004713,30]
[407770181,1772784159520,-250.0,0.0004713,30]
[407770182,1772784159588,-1000.0,0.0004713,30]
[407770183,1772784159655,-250.0,0.0004713,30]
[407770184,1772784159720,-1000.0,0.0004713,30]
[407770185,1772784159787,-250.0,0.0004713,30]
[407770186,1772784159853,-1000.0,0.0004713,30]
[407770187,1772784159919,-250.0,0.0004713,30]
[407770188,1772784159986,-1000.0,0.0004713,30]
[407770189,1772784160051,-251.39284069,0.0004713,120]
[407770190,1772784160122,-1000.0,0.0004713,30]
[407770191,1772784160193,-1000.0,0.0004713,30]
[407770192,1772784160266,-1000.0,0.0004713,30]
[407770193,1772784160335,-1000.0,0.0004713,30]
[407770194,1772784160404,-1000.0,0.0004713,30]
[407770195,1772784160474,-1000.0,0.0004713,30]
[407770196,1772784160549,-1000.0,0.0004713,30]
[407770197,1772784160615,-1000.0,0.0004713,30]
[407770198,1772784160682,-500.0,0.0004713,30]
[407770199,1772784160749,-1000.0,0.0004713,30]
[407770200,1772784160813,-1000.0,0.0004713,30]
[407770201,1772784160879,-1000.0,0.0004713,30]
[407770202,1772784160945,-1000.0,0.0004713,30]
[407770203,1772784161016,-565.15,0.0004713,30]
[407770204,1772784161078,-606.05,0.0004713,30]
[407770205,1772784161138,-181.92,0.0004713,30]
[407770206,1772784161201,-1000.0,0.0004713,30]
[407770207,1772784161266,-1000.0,0.0004713,30]
[407770208,1772784161330,-151.0,0.0004713,30]
[407770209,1772784161394,-151.0,0.0004713,30]
[407770210,1772784161457,-151.0,0.0004713,30]
[407770211,1772784161525,-500.0,0.0004713,30]
[407770212,1772784161588,-500.0,0.0004713,30]
[407770213,1772784161651,-500.0,0.0004713,30]
[407770214,1772784161712,-500.0,0.0004713,30]
[407770215,1772784161774,-250.0,0.0004713,30]
[407770216,1772784161837,-500.0,0.0004713,30]
[407770217,1772784161897,-250.0,0.0004713,30]
[407770218,1772784161957,-500.0,0.0004713,30]
[407770219,1772784162020,-250.0,0.0004713,30]
[407770220,1772784162076,-500.0,0.0004713,30]
[407770221,1772784162134,-250.0,0.0004713,30]
[407770222,1772784162193,-500.0,0.0004713,30]
[407770223,1772784162254,-250.0,0.0004713,30]
[407770224,1772784162315,-250.0,0.0004713,30]
[407770225,1772784162385,-250.0,0.0004713,30]
[407770226,1772784162459,-250.0,0.0004713,30]
[407770227,1772784162527,-250.0,0.0004713,30]
[407770228,1772784163011,-500.0,0.0004713,30]
[407770229,1772784163068,-518.5,0.0004713,30]
[407770230,1772784163125,-537.6845,0.0004713,30]
[407770231,1772784163184,-557.5788265,0.0004713,30]
[407770232,1772784163242,-578.20924308,0.0004713,30]
[407770233,1772784163302,-151.0,0.0004713,30]
[407770234,1772784163370,-599.60298507,0.0004713,30]
[407770235,1772784163431,-156.587,0.0004713,30]
[407770236,1772784163494,-621.78829552,0.0004713,30]
[407770237,1772784163557,-162.380719,0.0004713,30]
[407770238,1772784163620,-644.79446246,0.0004713,30]
[407770239,1772784163681,-168.3888056,0.0004713,30]
[407770240,1772784164598,174.61919141,0.0004713,30]
[407770241,1772784164672,1000.0,0.0004713,30]
[407770242,1772784164738,2000.0,0.0004713,30]
[407770243,1772784164827,1000.0,0.0004713,30]
[407770244,1772784164895,2000.0,0.0004713,30]
[407770245,1772784164975,2000.0,0.0004713,30]
[407770246,1772784165050,2000.0,0.0004713,30]
[407770247,1772784165118,2000.0,0.0004713,30]
[407770248,1772784165201,565.210601,0.0004713,30]
[407770249,1772784165271,181.08010149,0.0004713,30]
[407770251,1772784165359,6274.7637093,0.0004713,30]
[407770252,1772784165433,187.78006525,0.0004713,30]
[407770253,1772784165540,194.72792766,0.0004713,30]
[407770254,1772784165668,201.93286099,0.0004713,30]
[407770255,1772784165771,209.40437684,0.0004713,30]
[407770256,1772784165852,500.0,0.0004713,30]
[407770257,1772784165953,217.15233878,0.0004713,30]
[407770258,1772784166032,500.0,0.0004713,30]
[407770259,1772784166105,225.18697532,0.0004713,30]
[407770260,1772784166172,500.0,0.0004713,30]
[407770261,1772784166275,233.51889341,0.0004713,30]
[407770262,1772784166351,500.0,0.0004713,30]
[407770263,1772784166444,242.15909246,0.0004713,30]
[407770264,1772784166879,500.0,0.0004713,30]
[407770265,1772784167010,251.11897888,0.0004713,30]
[407770266,1772784167096,260.4103811,0.0004713,30]
[407770267,1772784168286,250.0,0.00015,2]
[407770268,1772784212128,166.66,0.00015914,2]
[407770269,1772784450103,192.64,0.00013401,2]
[407770270,1772784508070,2000.0,0.0001589,2]
[407770271,1772784616165,7640.71,0.00015806,2]
[407770272,1772784616199,10000.01,0.00015806,2]
[407770273,1772784616228,10000.01,0.00015806,2]
[407770274,1772784616258,10000.01,0.00015806,2]
[407770275,1772784616281,8983.45,0.00015806,2]
[407770278,1772784631915,-253.91423836,0.000161,2]
[407770282,1772784631927,-644.71052742,0.000161,2]
[407770289,1772784631998,-843.33708973,0.000161,2]
[407770290,1772784632011,-258.03814449,0.000161,2]
[407770291,1772784632021,-600.0,0.00016107,2]
[407770292,1772784632031,-250.0,0.00016114,2]
[407770293,1772784632040,-150.0,0.00016129,2]
[407770294,1772784632050,-200.0,0.00016142,2]
[407770295,1772784632060,-250.0,0.00016166,2]
[407770296,1772784632069,-1200.0,0.00016198,2]
[407770297,1772784632079,-272.0,0.00016199,2]
[407770298,1772784632089,-300.0,0.00016199,2]
[407770299,1772784632099,-300.0,0.00016199,2]
[407770300,1772784632108,-2000.0,0.000162,2]
[407770302,1772784632117,-2000.0,0.000162,2]
[407770304,1772784632127,-5000.00071293,0.000162,5]
[407770306,1772784632136,-621629.59986502,0.000162,2]
[407770308,1772784632147,-81577.51372318,0.000162,2]
[407770310,1772784632157,-1492.31247643,0.000162,2]
[407770312,1772784632168,-2214.77332447,0.000162,2]
[407770319,1772784632221,-2751.14100903,0.000162,2]
[407770324,1772784632537,-755.32505025,0.000162,2]
[407770325,1772784632550,-1217.40443236,0.000162,2]
[407770328,1772784638027,-968.12794408,0.00016199,2]
[407770329,1772784638039,-258.69744367,0.00016199,2]
[407770330,1772784638052,-1000.0,0.00016199,2]
[407770331,1772784638065,-2773.17461225,0.00016199,2]
[407770332,1772784638076,-8201.50377718,0.000162,2]
[407770333,1772784638089,-1050.0,0.000162,2]
[407770334,1772784638102,-916.51199559,0.000162,2]
[407770335,1772784638137,-693.03602401,0.000162,2]
[407770336,1772784638150,-1656.0439016,0.000162,2]
[407770350,1772784640528,-1775844.83442088,0.000162,2]
[407770351,1772784640537,-166.66,0.00016249,2]
[407770352,1772784640548,-1932.18,0.00016294,2]
[407770353,1772784640559,-3240.0,0.00016295,2]
[407770354,1772784640568,-2635.54,0.00016295,2]
[407770355,1772784640578,-2000.0,0.000163,2]
[407770356,1772784640593,-2000.0,0.000163,2]
[407770357,1772784640603,-2000.0,0.000164,2]
[407770358,1772784640613,-2000.0,0.000164,2]
[407770359,1772784640623,-550.0,0.00016499,2]
[407770360,1772784640633,-2000.0,0.000165,2]
[407770361,1772784640644,-2000.0,0.000165,2]
[407770362,1772784640654,-1204.076,0.000165,2]
[407770363,1772784640663,-470.4335,0.00016516,2]
[407770364,1772784640674,-500.62982044,0.0001658,2]
[407770365,1772784640684,-500.0,0.0001658,2]
[407770366,1772784640693,-500.0,0.0001658,2]
[407770367,1772784640703,-168.3299599,0.0001658,2]
[407770368,1772784640712,-500.0,0.0001658,2]
[407770369,1772784640722,-166.66,0.00016584,2]
[407770370,1772784640732,-2000.0,0.000166,2]
[407770371,1772784640742,-2000.0,0.000166,2]
[407770372,1772784640752,-2000.0,0.000167,2]
[407770373,1772784640762,-2000.0,0.000167,2]
[407770374,1772784640772,-166.34,0.00016712,2]
[407770375,1772784640782,-2146.92,0.00016752,2]
[407770376,1772784640792,-3531.11,0.00016752,2]
[407770377,1772784640803,-200.0,0.00016752,2]
[407770378,1772784640815,-1500.0,0.00016752,2]
[407770379,1772784640829,-155.88,0.0001679,2]
[407770380,1772784640839,-2000.0,0.000168,2]
[407770381,1772784640850,-2000.0,0.000168,2]
[407770382,1772784640860,-2000.0,0.000169,2]
[407770384,1772784640870,-2000.0,0.000169,2]
[407770385,1772784640880,-2000.0,0.000169,2]
[407770386,1772784640890,-166.66,0.00016919,2]
[407770387,1772784640900,-300.0,0.00017,2]
[407770388,1772784640910,-155.88,0.0001706,2]
[407770389,1772784640920,-19882.69676082,0.0001711,2]
[407770391,1772784640930,-1000.0,0.00017128,2]
[407770393,1772784640940,-1000.0,0.00017128,2]
[407770394,1772784640951,-1000.0,0.00017128,2]
[407770395,1772784640961,-1641.77147997,0.000172,2]
[407770396,1772784640971,-1955.04583592,0.000172,2]
[407770397,1772784640981,-166.66,0.00017254,2]
[407770398,1772784640992,-98323.6477,0.00017299,2]
[407770399,1772784641002,-10000.01,0.000173,2]
[407770400,1772784641012,-1013.26414391,0.000173,2]
[407770401,1772784641026,-770.02167196,0.000173,2]